[Event "Titled Tuesday Blitz June 14 Late 2022"]
[White "Martinez Alcantara, Jose Eduardo"]
[Black "Shimanov, Aleksandr"]
[WhiteFideId "3805662"]
[BlackFideId "4198603"]
[WhiteElo "2703"]
[BlackElo "2605"]
[Result "1-0"]
[Round "05"]
[TimeControl "180+1"]
[Date "2022.06.14"]
[WhiteClock "0:00:04"]
[BlackClock "0:00:09"]

1. e4 {[%clk 0:03:00]}  c6 {[%clk 0:02:58]} 2. d4 {[%clk 0:03:00]}  d5 {[%clk 0:02:59]} 3. e5 {[%clk 0:03:01]}  Bf5 {[%clk 0:02:59]} 4. h4 {[%clk 0:03:01]}  h6 {[%clk 0:02:54]} 5. g4 {[%clk 0:03:01]}  Bd7 {[%clk 0:02:54]} 6. Nc3 {[%clk 0:03:00]}  e6 {[%clk 0:02:54]} 7. Be3 {[%clk 0:02:58]}  Qc7 {[%clk 0:02:53]} 8. f4 {[%clk 0:02:55]}  h5 {[%clk 0:02:51]} 9. gxh5 {[%clk 0:02:41]}  Nh6 {[%clk 0:02:50]} 10. Nf3 {[%clk 0:02:37]}  Nf5 {[%clk 0:02:37]} 11. Bf2 {[%clk 0:02:36]}  c5 {[%clk 0:02:35]} 12. dxc5 {[%clk 0:02:18]}  Bxc5 {[%clk 0:02:36]} 13. Qd2 {[%clk 0:02:19]}  Rxh5 {[%clk 0:02:25]} 14. Bd3 {[%clk 0:02:08]}  Bb4 {[%clk 0:02:15]} 15. a3 {[%clk 0:01:49]}  Ba5 {[%clk 0:02:11]} 16. b4 {[%clk 0:01:44]}  Bb6 {[%clk 0:02:11]} 17. Bxf5 {[%clk 0:01:40]}  Rxf5 {[%clk 0:02:10]} 18. Bxb6 {[%clk 0:01:36]}  Qxb6 {[%clk 0:02:11]} 19. h5 {[%clk 0:01:20]}  Nc6 {[%clk 0:01:29]} 20. Ne2 {[%clk 0:01:08]}  a5 {[%clk 0:00:53]} 21. b5 {[%clk 0:01:07]}  Qxb5 {[%clk 0:00:49]} 22. Ng3 {[%clk 0:01:04]}  Qc4 {[%clk 0:00:44]} 23. Nxf5 {[%clk 0:01:00]}  exf5 {[%clk 0:00:43]} 24. Kf2 {[%clk 0:00:51]}  Qc5+ {[%clk 0:00:39]} 25. Kg3 {[%clk 0:00:49]}  O-O-O {[%clk 0:00:39]} 26. c3 {[%clk 0:00:44]}  a4 {[%clk 0:00:34]} 27. Nd4 {[%clk 0:00:36]}  Na5 {[%clk 0:00:34]} 28. Qd3 {[%clk 0:00:32]}  Nc4 {[%clk 0:00:33]} 29. Kf3 {[%clk 0:00:18]}  Re8 {[%clk 0:00:20]} 30. Kf2 {[%clk 0:00:16]}  Kb8 {[%clk 0:00:15]} 31. Rh3 {[%clk 0:00:14]}  f6 {[%clk 0:00:13]} 32. e6 {[%clk 0:00:11]}  Bxe6 {[%clk 0:00:11]} 33. Re1 {[%clk 0:00:12]}  Bd7 {[%clk 0:00:11]} 34. Rxe8+ {[%clk 0:00:13]}  Bxe8 {[%clk 0:00:12]} 35. Qxf5 {[%clk 0:00:11]}  Qxa3 {[%clk 0:00:12]} 36. Qxd5 {[%clk 0:00:10]}  Qb2+ {[%clk 0:00:12]} 37. Ne2 {[%clk 0:00:07]}  Bb5 {[%clk 0:00:12]} 38. Rg3 {[%clk 0:00:05]}  Ka7 {[%clk 0:00:11]} 39. Qd4+ {[%clk 0:00:05]}  Nb6 {[%clk 0:00:11]} 40. c4 {[%clk 0:00:03]}  Qxd4+ {[%clk 0:00:10]} 41. Nxd4 {[%clk 0:00:04]}  Bxc4 {[%clk 0:00:10]} 42. Rxg7 {[%clk 0:00:05]}  a3 {[%clk 0:00:10]} 43. h6 {[%clk 0:00:06]}  a2 {[%clk 0:00:09]} 44. Rg1 {[%clk 0:00:03]}  Bd3 {[%clk 0:00:10]} 45. Ra1 {[%clk 0:00:03]}  Bb1 {[%clk 0:00:09]} 46. Rxa2+ {[%clk 0:00:04]} 1-0


[Site "https://www.chess.com"]

[Event "Titled Tuesday Blitz June 14 Late 2022"]
[White "Mikhailov, Viacheslav"]
[Black "Kalajzic, Ivan"]
[WhiteFideId "4187369"]
[BlackFideId "14506378"]
[WhiteElo "2381"]
[BlackElo "2163"]
[Result "1-0"]
[Round "05"]
[TimeControl "180+1"]
[Date "2022.06.15"]
[WhiteClock "0:01:10"]
[BlackClock "0:00:07"]

1. Nf3 {[%clk 0:02:59]}  Nc6 {[%clk 0:02:59]} 2. d4 {[%clk 0:02:58]}  d5 {[%clk 0:02:58]} 3. Bf4 {[%clk 0:02:57]}  Bg4 {[%clk 0:02:58]} 4. e3 {[%clk 0:02:57]}  e6 {[%clk 0:02:58]} 5. h3 {[%clk 0:02:55]}  Bh5 {[%clk 0:02:58]} 6. Nbd2 {[%clk 0:02:54]}  Bd6 {[%clk 0:02:58]} 7. Bxd6 {[%clk 0:02:48]}  Qxd6 {[%clk 0:02:57]} 8. Be2 {[%clk 0:02:47]}  Nf6 {[%clk 0:02:56]} 9. O-O {[%clk 0:02:46]}  O-O {[%clk 0:02:56]} 10. c4 {[%clk 0:02:47]}  Bxf3 {[%clk 0:02:43]} 11. Bxf3 {[%clk 0:02:46]}  Rad8 {[%clk 0:02:34]} 12. Rc1 {[%clk 0:02:41]}  Ne7 {[%clk 0:02:30]} 13. Qa4 {[%clk 0:02:36]}  c6 {[%clk 0:02:20]} 14. cxd5 {[%clk 0:02:29]}  exd5 {[%clk 0:02:19]} 15. Nb3 {[%clk 0:02:20]}  Nc8 {[%clk 0:02:08]} 16. Nc5 {[%clk 0:02:17]}  Qe7 {[%clk 0:02:06]} 17. b4 {[%clk 0:02:17]}  Ne4 {[%clk 0:01:42]} 18. Bxe4 {[%clk 0:02:14]}  dxe4 {[%clk 0:01:43]} 19. b5 {[%clk 0:02:09]}  cxb5 {[%clk 0:01:39]} 20. Qxb5 {[%clk 0:02:10]}  b6 {[%clk 0:01:37]} 21. Na6 {[%clk 0:02:08]}  Nd6 {[%clk 0:01:37]} 22. Qb4 {[%clk 0:02:04]}  Qb7 {[%clk 0:01:25]} 23. Qa4 {[%clk 0:01:59]}  b5 {[%clk 0:01:18]} 24. Qa5 {[%clk 0:01:45]}  Nc4 {[%clk 0:01:16]} 25. Rxc4 {[%clk 0:01:43]}  bxc4 {[%clk 0:01:17]} 26. Nc5 {[%clk 0:01:43]}  Qb6 {[%clk 0:01:12]} 27. Qc3 {[%clk 0:01:36]}  Qb5 {[%clk 0:00:57]} 28. Rc1 {[%clk 0:01:35]}  Rc8 {[%clk 0:00:45]} 29. Qxc4 {[%clk 0:01:33]}  Qxc4 {[%clk 0:00:43]} 30. Rxc4 {[%clk 0:01:34]}  f5 {[%clk 0:00:38]} 31. Ra4 {[%clk 0:01:34]}  Rf7 {[%clk 0:00:36]} 32. Kh2 {[%clk 0:01:29]}  Rfc7 {[%clk 0:00:35]} 33. Kg3 {[%clk 0:01:28]}  g5 {[%clk 0:00:28]} 34. Ne6 {[%clk 0:01:23]}  Re7 {[%clk 0:00:18]} 35. Ra6 {[%clk 0:01:15]}  h6 {[%clk 0:00:16]} 36. h4 {[%clk 0:01:14]}  gxh4+ {[%clk 0:00:15]} 37. Kf4 {[%clk 0:01:14]}  Kf7 {[%clk 0:00:13]} 38. Nc5 {[%clk 0:01:13]}  Ke8 {[%clk 0:00:07]} 39. Rxh6 {[%clk 0:01:11]}  Rg7 {[%clk 0:00:07]} 40. Rh8+ {[%clk 0:01:10]} 1-0


[Site "https://www.chess.com"]

[Event "Titled Tuesday Blitz June 14 Late 2022"]
[White "Moral Garcia, Serafin"]
[Black "Wang, Isaac"]
[WhiteFideId "2201925"]
[BlackFideId "30977185"]
[WhiteElo "2251"]
[BlackElo "2231"]
[Result "1/2-1/2"]
[Round "05"]
[TimeControl "180+1"]
[Date "2022.06.15"]
[WhiteClock "0:00:36"]
[BlackClock "0:00:28"]

1. e4 {[%clk 0:03:00]}  c5 {[%clk 0:02:59]} 2. Nf3 {[%clk 0:02:59]}  Nc6 {[%clk 0:02:59]} 3. Bb5 {[%clk 0:02:58]}  d6 {[%clk 0:02:59]} 4. c3 {[%clk 0:02:56]}  Nf6 {[%clk 0:02:57]} 5. Qe2 {[%clk 0:02:56]}  Bd7 {[%clk 0:02:54]} 6. d4 {[%clk 0:02:56]}  cxd4 {[%clk 0:02:49]} 7. cxd4 {[%clk 0:02:56]}  a6 {[%clk 0:02:41]} 8. Ba4 {[%clk 0:02:42]}  e6 {[%clk 0:02:11]} 9. O-O {[%clk 0:02:40]}  Be7 {[%clk 0:02:10]} 10. Nc3 {[%clk 0:02:34]}  O-O {[%clk 0:02:09]} 11. e5 {[%clk 0:02:26]}  dxe5 {[%clk 0:02:00]} 12. dxe5 {[%clk 0:02:26]}  Nd5 {[%clk 0:02:00]} 13. Nxd5 {[%clk 0:02:23]}  exd5 {[%clk 0:02:00]} 14. Bxc6 {[%clk 0:02:06]}  bxc6 {[%clk 0:01:59]} 15. h3 {[%clk 0:02:02]}  c5 {[%clk 0:01:56]} 16. Bf4 {[%clk 0:02:01]}  Bb5 {[%clk 0:01:56]} 17. Qe3 {[%clk 0:01:58]}  Bxf1 {[%clk 0:01:55]} 18. Rxf1 {[%clk 0:01:59]}  d4 {[%clk 0:01:56]} 19. Qe4 {[%clk 0:01:59]}  Qd7 {[%clk 0:01:51]} 20. Rc1 {[%clk 0:01:54]}  Rfc8 {[%clk 0:01:49]} 21. b3 {[%clk 0:01:53]}  Qe6 {[%clk 0:01:42]} 22. Bg3 {[%clk 0:01:50]}  f6 {[%clk 0:01:37]} 23. Qd3 {[%clk 0:01:43]}  fxe5 {[%clk 0:01:35]} 24. Bxe5 {[%clk 0:01:40]}  Bd6 {[%clk 0:01:31]} 25. Bxd6 {[%clk 0:01:34]}  Qxd6 {[%clk 0:01:29]} 26. Nd2 {[%clk 0:01:33]}  Qd5 {[%clk 0:01:23]} 27. Ne4 {[%clk 0:01:31]}  Rc6 {[%clk 0:01:22]} 28. f3 {[%clk 0:01:28]}  Rac8 {[%clk 0:01:21]} 29. Rc4 {[%clk 0:01:28]}  h6 {[%clk 0:01:17]} 30. Kf2 {[%clk 0:01:22]}  a5 {[%clk 0:01:10]} 31. Ke2 {[%clk 0:01:20]}  Ra8 {[%clk 0:01:05]} 32. Ra4 {[%clk 0:01:16]}  Rg6 {[%clk 0:00:54]} 33. g4 {[%clk 0:01:14]}  Re6 {[%clk 0:00:50]} 34. Kd2 {[%clk 0:01:12]}  Rb6 {[%clk 0:00:46]} 35. Qc4 {[%clk 0:01:08]}  Qxc4 {[%clk 0:00:42]} 36. Rxc4 {[%clk 0:01:01]}  a4 {[%clk 0:00:39]} 37. Nxc5 {[%clk 0:01:01]}  axb3 {[%clk 0:00:39]} 38. axb3 {[%clk 0:01:01]}  Ra2+ {[%clk 0:00:38]} 39. Kd3 {[%clk 0:01:01]}  Rf2 {[%clk 0:00:37]} 40. Kxd4 {[%clk 0:00:59]}  Rxf3 {[%clk 0:00:37]} 41. Rc3 {[%clk 0:00:56]}  Rxc3 {[%clk 0:00:33]} 42. Kxc3 {[%clk 0:00:56]}  Rf6 {[%clk 0:00:34]} 43. b4 {[%clk 0:00:53]}  Rf3+ {[%clk 0:00:33]} 44. Kc4 {[%clk 0:00:54]}  Rxh3 {[%clk 0:00:33]} 45. b5 {[%clk 0:00:54]}  Rh4 {[%clk 0:00:27]} 46. b6 {[%clk 0:00:52]}  Rxg4+ {[%clk 0:00:27]} 47. Kb5 {[%clk 0:00:49]}  Rg1 {[%clk 0:00:24]} 48. Nb3 {[%clk 0:00:44]}  Rg5+ {[%clk 0:00:22]} 49. Ka6 {[%clk 0:00:36]}  Rg6 {[%clk 0:00:20]} 50. Ka7 {[%clk 0:00:36]}  Rxb6 {[%clk 0:00:21]} 51. Kxb6 {[%clk 0:00:36]}  Kf7 {[%clk 0:00:21]} 52. Kc5 {[%clk 0:00:37]}  Kf6 {[%clk 0:00:21]} 53. Kd4 {[%clk 0:00:37]}  Kg5 {[%clk 0:00:21]} 54. Ke3 {[%clk 0:00:37]}  Kg4 {[%clk 0:00:21]} 55. Nd4 {[%clk 0:00:33]}  g5 {[%clk 0:00:20]} 56. Kf2 {[%clk 0:00:33]}  h5 {[%clk 0:00:20]} 57. Nf3 {[%clk 0:00:32]}  h4 {[%clk 0:00:20]} 58. Nxg5 {[%clk 0:00:32]}  Kxg5 {[%clk 0:00:20]} 59. Kg2 {[%clk 0:00:32]}  Kf4 {[%clk 0:00:20]} 60. Kh3 {[%clk 0:00:32]}  Kg5 {[%clk 0:00:21]} 61. Kg2 {[%clk 0:00:32]}  Kg4 {[%clk 0:00:22]} 62. Kh2 {[%clk 0:00:33]}  h3 {[%clk 0:00:23]} 63. Kh1 {[%clk 0:00:33]}  Kh4 {[%clk 0:00:24]} 64. Kh2 {[%clk 0:00:34]}  Kg5 {[%clk 0:00:24]} 65. Kh1 {[%clk 0:00:34]}  Kg4 {[%clk 0:00:24]} 66. Kh2 {[%clk 0:00:35]}  Kh4 {[%clk 0:00:25]} 67. Kh1 {[%clk 0:00:35]}  Kg3 {[%clk 0:00:26]} 68. Kg1 {[%clk 0:00:36]}  h2+ {[%clk 0:00:27]} 69. Kh1 {[%clk 0:00:36]}  Kh3 {[%clk 0:00:28]} 1/2-1/2


[Site "https://www.chess.com"]

[Event "Titled Tuesday Blitz June 14 Late 2022"]
[White "Murthy, Pappu"]
[Black "Shapiro, Daniel"]
[WhiteFideId "2013401"]
[BlackFideId "2001780"]
[WhiteElo "2002"]
[BlackElo "2287"]
[Result "1-0"]
[Round "05"]
[TimeControl "180+1"]
[Date "2022.06.15"]
[WhiteClock "0:00:04"]
[BlackClock "0:00:01"]

1. c4 {[%clk 0:02:38]}  e5 {[%clk 0:02:58]} 2. Nc3 {[%clk 0:02:37]}  Nf6 {[%clk 0:02:57]} 3. Nf3 {[%clk 0:02:37]}  Nc6 {[%clk 0:02:57]} 4. g3 {[%clk 0:02:37]}  d5 {[%clk 0:02:55]} 5. cxd5 {[%clk 0:02:36]}  Nxd5 {[%clk 0:02:56]} 6. Bg2 {[%clk 0:02:36]}  Nde7 {[%clk 0:02:53]} 7. O-O {[%clk 0:02:36]}  g6 {[%clk 0:02:52]} 8. d3 {[%clk 0:02:26]}  Bg7 {[%clk 0:02:52]} 9. Rb1 {[%clk 0:02:22]}  O-O {[%clk 0:02:38]} 10. b4 {[%clk 0:02:21]}  a6 {[%clk 0:02:39]} 11. a4 {[%clk 0:02:21]}  Rb8 {[%clk 0:02:35]} 12. b5 {[%clk 0:02:21]}  axb5 {[%clk 0:02:35]} 13. axb5 {[%clk 0:02:22]}  Nd4 {[%clk 0:02:33]} 14. Nxd4 {[%clk 0:02:22]}  exd4 {[%clk 0:02:33]} 15. Ne4 {[%clk 0:02:17]}  b6 {[%clk 0:02:28]} 16. Ba3 {[%clk 0:02:17]}  Re8 {[%clk 0:02:26]} 17. Ng5 {[%clk 0:02:12]}  Nd5 {[%clk 0:02:11]} 18. Qb3 {[%clk 0:02:02]}  Bb7 {[%clk 0:02:08]} 19. h4 {[%clk 0:01:56]}  Rxe2 {[%clk 0:01:47]} 20. Be4 {[%clk 0:01:45]}  h6 {[%clk 0:01:40]} 21. Qd1 {[%clk 0:01:28]}  Ra2 {[%clk 0:01:37]} 22. Qb3 {[%clk 0:01:27]}  Rxa3 {[%clk 0:01:32]} 23. Qxa3 {[%clk 0:01:25]}  hxg5 {[%clk 0:01:33]} 24. hxg5 {[%clk 0:01:22]}  Ra8 {[%clk 0:01:17]} 25. Qb3 {[%clk 0:01:16]}  Qxg5 {[%clk 0:01:16]} 26. Ra1 {[%clk 0:01:14]}  Rd8 {[%clk 0:01:01]} 27. Ra7 {[%clk 0:01:10]}  Bc8 {[%clk 0:00:46]} 28. Qc4 {[%clk 0:01:05]}  Be6 {[%clk 0:00:38]} 29. Qc6 {[%clk 0:01:04]}  Be5 {[%clk 0:00:25]} 30. Ra8 {[%clk 0:00:50]}  Kg7 {[%clk 0:00:21]} 31. Rxd8 {[%clk 0:00:48]}  Qxd8 {[%clk 0:00:21]} 32. f4 {[%clk 0:00:40]}  Bf6 {[%clk 0:00:18]} 33. f5 {[%clk 0:00:36]}  gxf5 {[%clk 0:00:18]} 34. Bxf5 {[%clk 0:00:35]}  Ne3 {[%clk 0:00:17]} 35. Bxe6 {[%clk 0:00:19]}  Nxf1 {[%clk 0:00:15]} 36. Bh3 {[%clk 0:00:06]}  Ne3 {[%clk 0:00:12]} 37. Qf3 {[%clk 0:00:07]}  Qd5 {[%clk 0:00:09]} 38. Qf4 {[%clk 0:00:04]}  Qg5 {[%clk 0:00:08]} 39. Qxg5+ {[%clk 0:00:04]}  Bxg5 {[%clk 0:00:08]} 40. Bd7 {[%clk 0:00:04]}  Nd5 {[%clk 0:00:07]} 41. Kg2 {[%clk 0:00:04]}  Nc3 {[%clk 0:00:06]} 42. Bc6 {[%clk 0:00:04]}  Be7 {[%clk 0:00:06]} 43. Kf3 {[%clk 0:00:04]}  Bc5 {[%clk 0:00:07]} 44. Kf4 {[%clk 0:00:04]}  Kf6 {[%clk 0:00:07]} 45. g4 {[%clk 0:00:04]}  Na4 {[%clk 0:00:07]} 46. g5+ {[%clk 0:00:05]}  Ke7 {[%clk 0:00:06]} 47. Ke5 {[%clk 0:00:05]}  Nb2 {[%clk 0:00:06]} 48. Ke4 {[%clk 0:00:05]}  Nd1 {[%clk 0:00:06]} 49. Kf3 {[%clk 0:00:05]}  Nb2 {[%clk 0:00:06]} 50. Ke4 {[%clk 0:00:05]}  Kd6 {[%clk 0:00:05]} 51. Kf3 {[%clk 0:00:05]}  Nd1 {[%clk 0:00:04]} 52. Ke4 {[%clk 0:00:05]}  Ne3 {[%clk 0:00:05]} 53. Be8 {[%clk 0:00:05]}  Ke7 {[%clk 0:00:04]} 54. Bc6 {[%clk 0:00:05]}  Ng4 {[%clk 0:00:03]} 55. Bd5 {[%clk 0:00:05]}  Nh2 {[%clk 0:00:03]} 56. Bc6 {[%clk 0:00:04]}  Nf1 {[%clk 0:00:03]} 57. Bd5 {[%clk 0:00:03]}  Nd2+ {[%clk 0:00:03]} 58. Kf5 {[%clk 0:00:03]}  Nb1 {[%clk 0:00:01]} 59. Be4 {[%clk 0:00:03]}  Nc3 {[%clk 0:00:01]} 60. Bc6 {[%clk 0:00:04]} 1-0


[Site "https://www.chess.com"]

[Event "Titled Tuesday Blitz June 14 Late 2022"]
[White "Novikova, Galina"]
[Black "Jimenez Fernandez, Rebeca"]
[WhiteFideId "4157095"]
[BlackFideId "32070934"]
[WhiteElo "1863"]
[BlackElo "1877"]
[Result "0-1"]
[Round "05"]
[TimeControl "180+1"]
[Date "2022.06.15"]
[WhiteClock "0:00:17"]
[BlackClock "0:00:10"]

1. e4 {[%clk 0:03:00]}  c5 {[%clk 0:02:59]} 2. Nf3 {[%clk 0:03:00]}  Nc6 {[%clk 0:02:59]} 3. d4 {[%clk 0:03:00]}  cxd4 {[%clk 0:03:00]} 4. Nxd4 {[%clk 0:03:01]}  g6 {[%clk 0:03:01]} 5. Nc3 {[%clk 0:03:01]}  Bg7 {[%clk 0:03:00]} 6. Be3 {[%clk 0:03:02]}  Nf6 {[%clk 0:02:59]} 7. Nxc6 {[%clk 0:03:02]}  bxc6 {[%clk 0:02:58]} 8. e5 {[%clk 0:03:03]}  Ng8 {[%clk 0:02:54]} 9. Bd4 {[%clk 0:03:03]}  f6 {[%clk 0:02:47]} 10. f4 {[%clk 0:03:03]}  Nh6 {[%clk 0:02:38]} 11. exf6 {[%clk 0:02:57]}  exf6 {[%clk 0:02:39]} 12. Bc4 {[%clk 0:02:52]}  d5 {[%clk 0:02:37]} 13. Qe2+ {[%clk 0:02:47]}  Kf7 {[%clk 0:02:35]} 14. O-O-O {[%clk 0:02:36]}  Re8 {[%clk 0:02:17]} 15. Qf1 {[%clk 0:02:26]}  dxc4 {[%clk 0:02:13]} 16. Qxc4+ {[%clk 0:02:08]}  Be6 {[%clk 0:02:12]} 17. Qxc6 {[%clk 0:02:01]}  Qc8 {[%clk 0:02:10]} 18. Qa4 {[%clk 0:01:37]}  Nf5 {[%clk 0:02:04]} 19. Bf2 {[%clk 0:01:24]}  Qc4 {[%clk 0:02:01]} 20. Qxc4 {[%clk 0:01:14]}  Bxc4 {[%clk 0:02:02]} 21. b3 {[%clk 0:01:10]}  Be6 {[%clk 0:01:54]} 22. g4 {[%clk 0:01:06]}  Ne7 {[%clk 0:01:53]} 23. h3 {[%clk 0:01:01]}  f5 {[%clk 0:01:53]} 24. Nb5 {[%clk 0:01:00]}  Red8 {[%clk 0:01:27]} 25. Nc7 {[%clk 0:00:50]}  Rac8 {[%clk 0:00:43]} 26. Nxe6 {[%clk 0:00:48]}  Rxd1+ {[%clk 0:00:40]} 27. Rxd1 {[%clk 0:00:47]}  Kxe6 {[%clk 0:00:40]} 28. c4 {[%clk 0:00:45]}  Nc6 {[%clk 0:00:36]} 29. a3 {[%clk 0:00:36]}  a5 {[%clk 0:00:36]} 30. Kc2 {[%clk 0:00:26]}  Rd8 {[%clk 0:00:32]} 31. Rxd8 {[%clk 0:00:23]}  Nxd8 {[%clk 0:00:33]} 32. b4 {[%clk 0:00:24]}  axb4 {[%clk 0:00:32]} 33. axb4 {[%clk 0:00:25]}  Nc6 {[%clk 0:00:32]} 34. b5 {[%clk 0:00:18]}  Bd4 {[%clk 0:00:27]} 35. Be1 {[%clk 0:00:10]}  Nb8 {[%clk 0:00:22]} 36. Kd3 {[%clk 0:00:09]}  Bc5 {[%clk 0:00:21]} 37. Bc3 {[%clk 0:00:08]}  Nd7 {[%clk 0:00:20]} 38. Bg7 {[%clk 0:00:06]}  fxg4 {[%clk 0:00:19]} 39. hxg4 {[%clk 0:00:07]}  Kd6 {[%clk 0:00:19]} 40. Ke4 {[%clk 0:00:06]}  h5 {[%clk 0:00:19]} 41. gxh5 {[%clk 0:00:06]}  gxh5 {[%clk 0:00:20]} 42. f5 {[%clk 0:00:06]}  h4 {[%clk 0:00:18]} 43. f6 {[%clk 0:00:07]}  Ke6 {[%clk 0:00:18]} 44. Bh6 {[%clk 0:00:04]}  Nxf6+ {[%clk 0:00:19]} 45. Kf3 {[%clk 0:00:04]}  Nd7 {[%clk 0:00:13]} 46. Kg4 {[%clk 0:00:03]}  Be7 {[%clk 0:00:14]} 47. Be3 {[%clk 0:00:02]}  Ke5 {[%clk 0:00:13]} 48. b6 {[%clk 0:00:02]}  Ke4 {[%clk 0:00:13]} 49. Bf2 {[%clk 0:00:01]}  Bc5 {[%clk 0:00:11]} 50. b7 {[%clk 0:00:01]}  Bxf2 {[%clk 0:00:10]} 51. Kh3 {[%clk 0:00:01]}  Nb8 {[%clk 0:00:10]} 52. Kg4 {[%clk 0:00:01]}  Kd4 {[%clk 0:00:11]} 53. Kh3 {[%clk 0:00:02]}  Kxc4 {[%clk 0:00:11]} 54. Kg4 {[%clk 0:00:02]}  Kb5 {[%clk 0:00:12]} 55. Kh3 {[%clk 0:00:03]}  Kb6 {[%clk 0:00:13]} 56. Kg4 {[%clk 0:00:04]}  Kxb7 {[%clk 0:00:14]} 57. Kh3 {[%clk 0:00:05]}  Kc6 {[%clk 0:00:15]} 58. Kg4 {[%clk 0:00:05]}  Kd5 {[%clk 0:00:15]} 59. Kh3 {[%clk 0:00:06]}  Ke4 {[%clk 0:00:16]} 60. Kg4 {[%clk 0:00:07]}  Ke5 {[%clk 0:00:17]} 61. Kh3 {[%clk 0:00:08]}  Kf5 {[%clk 0:00:17]} 62. Kg2 {[%clk 0:00:09]}  Bc5 {[%clk 0:00:16]} 63. Kh1 {[%clk 0:00:10]}  Kg4 {[%clk 0:00:17]} 64. Kg2 {[%clk 0:00:11]}  Nd7 {[%clk 0:00:16]} 65. Kh1 {[%clk 0:00:12]}  Ne5 {[%clk 0:00:17]} 66. Kg2 {[%clk 0:00:13]}  h3+ {[%clk 0:00:17]} 67. Kh1 {[%clk 0:00:14]}  Bd6 {[%clk 0:00:17]} 68. Kg1 {[%clk 0:00:14]}  Kg3 {[%clk 0:00:17]} 69. Kh1 {[%clk 0:00:14]}  Ng6 {[%clk 0:00:16]} 70. Kg1 {[%clk 0:00:15]}  Nh4 {[%clk 0:00:14]} 71. Kh1 {[%clk 0:00:16]}  Nf5 {[%clk 0:00:14]} 72. Kg1 {[%clk 0:00:16]}  Ne3 {[%clk 0:00:09]} 73. Kh1 {[%clk 0:00:17]}  Ng4 {[%clk 0:00:10]} 74. Kg1 {[%clk 0:00:17]}  Nf2 {[%clk 0:00:10]} 75. Kf1 {[%clk 0:00:17]}  h2 {[%clk 0:00:10]} 0-1


[Site "https://www.chess.com"]

[Event "Titled Tuesday Blitz June 14 Late 2022"]
[White "Nozdrachev, Leonid"]
[Black "Salimova, Nurgyul"]
[WhiteFideId "24113433"]
[BlackFideId "2915138"]
[WhiteElo "2129"]
[BlackElo "2184"]
[Result "0-1"]
[Round "05"]
[TimeControl "180+1"]
[Date "2022.06.15"]
[WhiteClock "0:00:01"]
[BlackClock "0:00:02"]

1. e4 {[%clk 0:02:34]}  c6 {[%clk 0:02:58]} 2. Nf3 {[%clk 0:02:32]}  d5 {[%clk 0:02:58]} 3. d3 {[%clk 0:02:32]}  dxe4 {[%clk 0:02:56]} 4. dxe4 {[%clk 0:02:33]}  Qxd1+ {[%clk 0:02:57]} 5. Kxd1 {[%clk 0:02:33]}  Nf6 {[%clk 0:02:54]} 6. Nfd2 {[%clk 0:02:30]}  h5 {[%clk 0:02:50]} 7. a4 {[%clk 0:02:22]}  h4 {[%clk 0:02:47]} 8. h3 {[%clk 0:02:21]}  g5 {[%clk 0:02:46]} 9. Nc3 {[%clk 0:02:19]}  Nbd7 {[%clk 0:02:34]} 10. Be2 {[%clk 0:02:13]}  Nc5 {[%clk 0:02:27]} 11. b4 {[%clk 0:02:07]}  Ne6 {[%clk 0:02:26]} 12. Bb2 {[%clk 0:02:07]}  Nf4 {[%clk 0:02:16]} 13. Bf3 {[%clk 0:01:53]}  Bg7 {[%clk 0:02:16]} 14. Ne2 {[%clk 0:01:49]}  Ng6 {[%clk 0:01:57]} 15. Ra3 {[%clk 0:01:42]}  Be6 {[%clk 0:01:46]} 16. Nd4 {[%clk 0:01:39]}  O-O-O {[%clk 0:01:40]} 17. Nxe6 {[%clk 0:01:36]}  fxe6 {[%clk 0:01:41]} 18. Rd3 {[%clk 0:01:33]}  Nf4 {[%clk 0:01:36]} 19. Rxd8+ {[%clk 0:01:27]}  Rxd8 {[%clk 0:01:37]} 20. g3 {[%clk 0:01:25]}  Ng6 {[%clk 0:01:27]} 21. Ke2 {[%clk 0:01:12]}  Ne8 {[%clk 0:00:57]} 22. Bxg7 {[%clk 0:01:09]}  Nxg7 {[%clk 0:00:58]} 23. Nc4 {[%clk 0:01:06]}  Rd4 {[%clk 0:00:56]} 24. Ne3 {[%clk 0:00:55]}  Rxb4 {[%clk 0:00:56]} 25. a5 {[%clk 0:00:48]}  Ra4 {[%clk 0:00:50]} 26. gxh4 {[%clk 0:00:42]}  Nxh4 {[%clk 0:00:46]} 27. Bg4 {[%clk 0:00:39]}  Rxa5 {[%clk 0:00:44]} 28. Rf1 {[%clk 0:00:34]}  Ng6 {[%clk 0:00:44]} 29. Ng2 {[%clk 0:00:29]}  Rc5 {[%clk 0:00:41]} 30. Kd2 {[%clk 0:00:25]}  Ne5 {[%clk 0:00:19]} 31. Be2 {[%clk 0:00:21]}  Ne8 {[%clk 0:00:15]} 32. f4 {[%clk 0:00:20]}  gxf4 {[%clk 0:00:16]} 33. Nxf4 {[%clk 0:00:21]}  Kd7 {[%clk 0:00:14]} 34. h4 {[%clk 0:00:20]}  Nf6 {[%clk 0:00:13]} 35. h5 {[%clk 0:00:17]}  Nxe4+ {[%clk 0:00:13]} 36. Kc1 {[%clk 0:00:17]}  Ng3 {[%clk 0:00:10]} 37. Rd1+ {[%clk 0:00:11]}  Ke8 {[%clk 0:00:10]} 38. h6 {[%clk 0:00:10]}  Nxe2+ {[%clk 0:00:10]} 39. Nxe2 {[%clk 0:00:11]}  Nf7 {[%clk 0:00:09]} 40. Rh1 {[%clk 0:00:09]}  Kf8 {[%clk 0:00:09]} 41. Nf4 {[%clk 0:00:09]}  Kg8 {[%clk 0:00:04]} 42. h7+ {[%clk 0:00:06]}  Kh8 {[%clk 0:00:04]} 43. Ng6+ {[%clk 0:00:06]}  Kg7 {[%clk 0:00:05]} 44. Nf4 {[%clk 0:00:02]}  Re5 {[%clk 0:00:04]} 45. Kd2 {[%clk 0:00:02]}  Re4 {[%clk 0:00:04]} 46. Nd3 {[%clk 0:00:02]}  Rg4 {[%clk 0:00:03]} 47. Nc5 {[%clk 0:00:01]}  Rg6 {[%clk 0:00:03]} 48. Nd7 {[%clk 0:00:01]}  Rh6 {[%clk 0:00:02]} 0-1


[Site "https://www.chess.com"]